[Event "Rapid Shavuot-A 2023"]
[Site "Ramat Gan"]
[Date "2023.05.25"]
[Round "1.18"]
[White "Ehrlich, Roy"]
[Black "Azoulay, Yehonatan"]
[Result "1-0"]
[ECO "B27"]
[WhiteElo "2228"]
[BlackElo "1813"]
[Annotator "TA"]
[PlyCount "90"]
[EventDate "2023.05.19"]
[EventType "swiss"]
[EventCountry "ISR"]
[SourceTitle "playchess.com"]
[Source "ChessBase"]
[SourceQuality "1"]
[TimeControl "900+5"]

{[%evp 9,90,43,54,36,39,41,42,37,96,74,93,38,106,109,139,145,166,59,33,55,154,132,135,71,84,-48,-44,-60,-49,-20,-29,-50,0,0,37,21,142,80,164,102,103,94,98,89,269,271,271,239,233,214,425,417,393,191,670,662,645,617,1207,1207,1207,1207,29988,659,637,637,950,822,822,807,776,776,767,761,29981,29982,29982,29983,29983,29983,29983,29984,29985]} 1. e4 {[%emt 0:00:02]} c5 {[%emt 0:00:01]} 2. Nf3 g6 {[%emt 0:15:14]} 3. d4 {[%emt 0:00:03]} cxd4 {[%emt 0:00:00]} 4. c3 {[%emt 0:00:02]} Nf6 {[%emt 0:00:00]} 5. e5 {[%emt 0:00:11]} Nd5 {[%emt 0:00:00]} 6. Qxd4 {[%emt 0:01:00] B27: Sicilian: 2 Nf3, unusual Black 2nd moves.} e6 {[%emt 0:00:00]} 7. Bc4 {[%emt 0:01:22]} Nc6 {[%emt 0:00:00]} 8. Qe4 {[%emt 0:00:11] White is slightly better.} Nb6 {[%emt 0:00:30]} (8... d6 $14) 9. Bb3 $16 {[%emt 0:00:02]} Bg7 {[%emt 0:00:00] [#]} 10. h4 $146 {[%emt 0:00:23]} (10. Na3 $16) ({Predecessor:} 10. O-O d5 11. exd6 Qxd6 12. Na3 O-O 13. Nb5 Qc5 14. a4 Na5 15. Ba2 Qc6 16. Qh4 {½-½ Frostick,C (2108)-Casey,E (1954) BCF-chT2 1920 (4NCL) online 2020 (7.82)}) 10... h6 {[%emt 0:00:00]} (10... d6 $14) 11. Bf4 {[%emt 0:00:24]} a5 {[%emt 0:00:00]} 12. a4 $1 {[%emt 0:00:23]} O-O {[%emt 0:00:00]} 13. h5 {[%emt 0:00:16]} (13. Nbd2 $18) 13... d5 $1 $14 {[%emt 0:00:00]} 14. exd6 {[%emt 0:00:52]} f5 {[%emt 0:00:00]} (14... g5 $1 $14) 15. Qe2 $16 {[%emt 0:01:07]} (15. Bxe6+ $2 Kh8 16. Qc2 Qe8 $17) 15... g5 {[%emt 0:00:00]} 16. Be3 {[%emt 0:00:19]} (16. Bxe6+ Kh8 17. Bxc8 Nxc8 $17) (16. Bh2 $142 $1) 16... Nd5 {[%emt 0:00:00]} 17. Na3 {[%emt 0:02:14] [#]} ({White should try} 17. Bd2 $16) 17... Nxc3 $1 $15 {[%emt 0:00:00]} 18. bxc3 {[%emt 0:00:01]} (18. Qc4 Nd5) 18... Bxc3+ {[%emt 0:00:00]} (18... Qxd6 $2 19. Nb5 Qe7 20. O-O-O $18) 19. Nd2 $1 {[%emt 0:00:01]} ({Not} 19. Bd2 $2 Bxa1 20. Nb5 (20. Bxe6+ $2 {too greedy.} Kh7 $19) 20... Bg7 $17) 19... Bxa1 {[%emt 0:00:00]} 20. Nb5 {[%emt 0:00:02]} Bf6 {[%emt 0:00:00]} (20... Bg7 $15 21. O-O Kh8) 21. Nc4 {[%emt 0:00:02]} Bd7 {[%emt 0:00:00]} 22. Nb6 $36 {[%emt 0:00:11][%mdl 2048] Nc7 is the strong threat. White is more active. Excellent horsemanship.} Rc8 {[%emt 0:00:21] [#]} 23. Bc5 {[%emt 0:01:01] White has more active pieces.} (23. O-O $142 $1) 23... Re8 {[%emt 0:00:20] [#]} 24. Nxc8 {[%emt 0:00:52]} ({Better is} 24. O-O $1 $18) 24... Qxc8 $16 {[%emt 0:00:19]} 25. Nc7 {[%emt 0:00:08]} Bc3+ {[%emt 0:00:13]} 26. Kf1 {[%emt 0:00:07]} Nd4 $2 {[%emt 0:00:05] Black cannot hold the game after this.} (26... Bd4 $16 27. Nxe8 Qxe8) 27. Bxd4 $18 {[%emt 0:00:32]} Bxd4 {[%emt 0:00:00]} 28. Nxe8 {[%emt 0:01:47]} Qxe8 {[%emt 0:00:03]} 29. Qd3 {[%emt 0:00:09][%csl LRd4,LRf5]} Bg7 {[%emt 0:00:13]} (29... Ba7 30. Qxf5 Qf7 31. Qxf7+ (31. Qxa5 $2 Qxf2#) 31... Kxf7) 30. Qxf5 {[%emt 0:00:09]} Qc8 {[%emt 0:00:01]} 31. Qc2 {[%emt 0:00:12] Wards off Qc1+} (31. Qxa5 $142 Qc1+ 32. Qe1 Qxe1+ 33. Kxe1) 31... Qa8 $2 {[%emt 0:00:10]} (31... Qxc2 32. Bxc2 Bd4) 32. Rh3 {[%emt 0:00:22]} Qa6+ {[%emt 0:00:03]} 33. Rd3 {[%emt 0:00:55]} b5 {[%emt 0:00:08]} 34. Qc7 {[%emt 0:00:53] White threatens Qd8+ and mate.} bxa4 {[%emt 0:00:02]} 35. Bc4 {[%emt 0:00:01]} Qc6 {[%emt 0:00:03]} 36. Qxc6 {[%emt 0:00:13]} (36. Bxe6+ $142 Kh7 37. Bxd7 Qe4 38. Rd1 Kg8 39. Qc8+ Bf8 40. Be6+ Kg7 41. Qe8) 36... Bxc6 {[%emt 0:00:01][%mdl 4096] Endgame KRB-KB} 37. d7 {[%emt 0:00:03]} Bf6 {[%emt 0:00:05]} 38. Bxe6+ {[%emt 0:00:07]} Kf8 {[%emt 0:00:01]} 39. d8=Q+ {[%emt 0:00:03]} Bxd8 {[%emt 0:00:02]} 40. Rxd8+ {[%emt 0:00:02]} Ke7 {[%emt 0:00:00]} 41. Rc8 {[%emt 0:00:06]} Bb7 {[%emt 0:00:19]} 42. Rc7+ {[%emt 0:00:01] White mates.} Kxe6 {[%emt 0:00:01]} 43. Rxb7 {[%emt 0:00:02]} a3 {[%emt 0:00:02]} 44. Rb3 {[%emt 0:00:01]} a2 {[%emt 0:00:02]} 45. Ra3 {[%emt 0:00:01][%csl LRa2,LRa5]} Kd6 {[%emt 0:00:00] Weighted Error Value: White=0.44/Black=0.90} 1-0

[Event "Rapid Shavuot-A 2023"]
[Site "Ramat Gan"]
[Date "2023.05.25"]
[Round "2.1"]
[White "Zemach, Roee"]
[Black "Parkhov, Yair"]
[Result "1-0"]
[ECO "B06"]
[WhiteElo "2261"]
[BlackElo "2505"]
[Annotator "TA"]
[PlyCount "91"]
[EventDate "2023.05.19"]
[EventType "swiss"]
[EventCountry "ISR"]
[SourceTitle "playchess.com"]
[Source "ChessBase"]
[SourceQuality "1"]
[TimeControl "900+5"]

{[%evp 9,91,43,74,41,89,28,81,34,37,24,29,31,56,42,32,39,56,-23,41,18,7,0,0,0,0,0,0,0,0,0,23,8,0,0,0,-18,-41,-39,18,16,23,24,79,69,77,75,77,101,127,131,117,111,185,185,185,185,751,316,295,288,532,497,560,545,531,488,807,759,797,483,716,370,12839,12840,12840,12841,12841,12841,12841,12842,12841,12842,12842,12843]} 1. e4 {[%emt 0:00:04]} g6 {[%emt 0:00:01]} 2. d4 {[%emt 0:00:07]} Bg7 {[%emt 0:00:01]} 3. Nc3 {[%emt 0:00:07]} d6 {[%emt 0:00:02]} 4. Be3 {[%emt 0:00:07]} a6 {[%emt 0:00:01]} 5. g4 {[%emt 0:00:28]} h6 {[%emt 0:00:09]} 6. Bg2 {[%emt 0:00:18] White is more active. B06: Modern Defence.} Nd7 {[%emt 0:00:02]} (6... e5 $14) 7. h4 {[%emt 0:00:17]} (7. f4 $16) 7... e6 {[%emt 0:00:08] [#]} (7... c5 $11) 8. g5 $146 {[%emt 0:00:21]} (8. h5 $16) ({Predecessor:} 8. Qe2 Ne7 9. f4 b5 10. f5 e5 11. O-O-O exd4 12. Bxd4 Bxd4 13. Rxd4 Nc6 14. Rd1 {½-½ Sidiropoulos,V (1815)-Dallis,I (1524) GRE-ch U20 Trikala 2022 (3)}) 8... h5 $14 {[%emt 0:00:10]} 9. Nge2 {[%emt 0:01:40]} Ne7 {[%emt 0:00:02]} 10. Ng3 {[%emt 0:01:00]} Nb6 {[%emt 0:00:08]} 11. Qe2 {[%emt 0:00:18]} d5 {[%emt 0:00:19]} 12. O-O-O {[%emt 0:00:26]} Bd7 {[%emt 0:01:58]} 13. exd5 {[%emt 0:00:43]} (13. b3 $14) 13... Nbxd5 {[%emt 0:01:36]} ({Black should play} 13... exd5 $11 14. b3 O-O) 14. Nxd5 {[%emt 0:00:22]} exd5 {[%emt 0:00:02]} 15. Bf4 {[%emt 0:00:10]} Bg4 {[%emt 0:00:17]} 16. Bf3 {[%emt 0:00:13]} Bxf3 {[%emt 0:00:11]} 17. Qxf3 {[%emt 0:00:03]} Qd7 {[%emt 0:00:02]} 18. Be5 {[%emt 0:00:32]} Bxe5 {[%emt 0:00:45]} 19. dxe5 {[%emt 0:00:02]} Qe6 {[%emt 0:00:07]} 20. Qf6 {[%emt 0:00:11]} O-O-O {[%emt 0:00:30]} 21. f4 {[%emt 0:02:45][%cal Of4f5]} Rhe8 {[%emt 0:00:36]} 22. f5 {[%emt 0:00:03]} Nxf5 {[%emt 0:00:33]} 23. Nxf5 {[%emt 0:00:04]} Qxf5 {[%emt 0:00:11]} (23... Qxf6 $15 24. exf6 gxf5) 24. Qxf5+ $11 {[%emt 0:00:20]} gxf5 {[%emt 0:00:02][%mdl 4096] Endgame KRR-KRR} 25. Rde1 {[%emt 0:00:02]} Kd7 {[%emt 0:05:08]} (25... d4 $11) 26. Rhf1 $16 {[%emt 0:00:03] White stays focused until the end.} Ke6 {[%emt 0:00:02]} 27. Rf2 {[%emt 0:00:02]} Re7 {[%emt 0:01:04]} 28. Ref1 {[%emt 0:01:34]} Kxe5 {[%emt 0:00:07]} 29. Rxf5+ {[%emt 0:00:06]} Kd6 {[%emt 0:00:14]} 30. Rxf7 {[%emt 0:00:13]} Rde8 {[%emt 0:00:09]} (30... Re4 $16) 31. Rxe7 {[%emt 0:00:28]} Rxe7 $18 {[%emt 0:00:02] KR-KR} 32. Rf6+ {[%emt 0:00:02]} Re6 $2 {[%emt 0:01:21]} (32... Ke5 33. Rh6 Kf5) 33. Rh6 {[%emt 0:00:02]} (33. Rxe6+ $142 Kxe6 34. b4) 33... Ke5 {[%emt 0:00:47]} 34. Rxh5 {[%emt 0:00:13] [#] aiming for Rh6.} Re7 $2 {[%emt 0:00:44]} (34... Kf5 35. Kd2 Re4) 35. Rh6 {[%emt 0:00:18]} Kf5 {[%emt 0:00:04]} 36. g6 {[%emt 0:00:15]} Kf6 {[%emt 0:00:19]} 37. h5 {[%emt 0:00:04][%cal Bh4h5,Bh5h6,Bh6h7][%mdl 32]} d4 {[%emt 0:00:08]} (37... c6 $142 38. Rh8 a5) 38. Kd2 {[%emt 0:00:19]} c5 {[%emt 0:00:01]} 39. Rh8 {[%emt 0:01:48] [#] Strongly threatening Rh7.} b5 {[%emt 0:00:05]} (39... c4 $142 40. b3 b5 41. bxc4 bxc4 42. Rf8+ Kg7) 40. Rg8 {[%emt 0:00:15] h6 is the strong threat.} Re5 $2 {[%emt 0:00:06]} (40... Kg5 41. Rh8 (41. g7 c4 $16) 41... Kf6) 41. h6 {[%emt 0:00:06] White wants to mate with g7. White is clearly winning.} Rh5 {[%emt 0:00:03]} 42. h7 {[%emt 0:00:02]} Rh2+ {[%emt 0:00:01]} 43. Kd3 {[%emt 0:00:04]} Rh3+ {[%emt 0:00:02]} 44. Ke2 {[%emt 0:00:05]} Rh2+ {[%emt 0:00:01]} 45. Kf3 {[%emt 0:00:01]} Rh3+ {[%emt 0:00:12]} 46. Kg2 {[%emt 0:00:02] Weighted Error Value: White=0.51/Black=0.32} 1-0

[Event "Rapid Shavuot-A 2023"]
[Site "Ramat Gan"]
[Date "2023.05.25"]
[Round "2.2"]
[White "Dvoirys, Semen I."]
[Black "Zemach, Nadav"]
[Result "0-1"]
[ECO "C88"]
[WhiteElo "2470"]
[BlackElo "2383"]
[Annotator "TA"]
[PlyCount "63"]
[EventDate "2023.05.19"]
[EventType "swiss"]
[EventCountry "ISR"]
[SourceTitle "playchess.com"]
[Source "ChessBase"]
[SourceQuality "1"]
[TimeControl "900+5"]

{[%evp 14,63,37,18,70,47,143,147,111,98,124,33,31,0,52,66,97,26,11,-246,-134,-110,-184,-348,-55,-287,-277,-283,-263,-254,108,101,187,178,420,412,427,423,391,339,761,650,839,739,1381,1006,905,842,1128,1009,1188,0]} 1. e4 {[%emt 0:00:03]} e5 {[%emt 0:00:01]} 2. Nf3 {[%emt 0:00:01]} Nc6 {[%emt 0:00:01]} 3. Bb5 {[%emt 0:00:05][%cal Bf1b5,Bb5a4,Ba4b3][%mdl 32]} a6 {[%emt 0:15:18]} 4. Ba4 Nf6 {[%emt 0:00:00]} 5. O-O {[%emt 0:00:02]} Be7 {[%emt 0:00:00]} 6. Re1 {[%emt 0:00:04]} b5 {[%emt 0:00:00]} 7. Bb3 {[%emt 0:00:00]} O-O {[%emt 0:00:00]} 8. a4 {[%emt 0:00:04] aiming for axb5.} d5 {[%emt 0:00:00] C88: Closed Ruy Lopez: Anti-Marshall Systems.} (8... b4 $11) 9. exd5 {[%emt 0:00:10]} e4 {[%emt 0:00:00]} (9... Na5 $14) 10. dxc6 $16 {[%emt 0:00:39]} exf3 {[%emt 0:00:00] White is clearly better.} 11. d4 {[%emt 0:00:52] [#]} (11. Qxf3 Bg4 12. Qc3 b4 $14) 11... fxg2 $146 {[%emt 0:00:00]} ({Predecessor:} 11... Bf5 12. Re5 Qe8 13. Rxf5 {1-0 Ceron,J (2106)-Aguilar,H (1889) Bogota Distrital qual 2016 (4)}) 12. Bf4 {[%emt 0:01:11]} (12. axb5 $16 {Hoping for Nc3.} Ng4 13. Re4 (13. Kxg2 Bd6 $17)) 12... Bd6 $1 $14 {[%emt 0:00:00]} 13. Bg3 {[%emt 0:02:24]} b4 {[%emt 0:00:00]} (13... Bg4 $1 $11 14. Qd3 bxa4 15. Rxa4 Re8 16. Rxe8+ Qxe8) 14. d5 {[%emt 0:04:40]} Bg4 {[%emt 0:00:00] [#]} 15. Qd3 {[%emt 0:00:01]} (15. Qd4 $1 $16) 15... Nh5 $11 {[%emt 0:00:00]} 16. Qd4 {[%emt 0:01:18][%mdl 8192] Dodges Nf4} (16. Nd2 $1 $11 {and White is okay.}) 16... Qg5 {[%emt 0:00:00]} (16... Nxg3 $19 17. fxg3 f5) 17. Nd2 {[%emt 0:00:01] Black must now prevent Ne4.} (17. Kxg2 $2 Nf4+ 18. Bxf4 Bxf4 $19) (17. Bxd6 $2 cxd6 18. Re3 Nf4 $19) 17... f5 {[%emt 0:00:00] Against Ne4. The board is on fire.} (17... Nxg3 $17 18. fxg3 Qh5) 18. Be5 $2 {[%emt 0:02:30]} (18. Kxg2 $2 f4 19. Ne4 Bf3+ 20. Kxf3 fxg3+ 21. Ke2 Qg4+ 22. Kd3 gxf2 23. Nxd6 fxe1=N+ 24. Rxe1 Nf4+ 25. Kc4 cxd6 $19) (18. Bxd6 cxd6 19. Re3) 18... Kh8 $2 {[%emt 0:00:00]} (18... Bxe5 $19 19. Rxe5 Nf4 20. d6+ (20. Qxb4 $2 Nh3+ 21. Kxg2 Nf4+ 22. Kf1 Bh3+ 23. Ke1 Qg1+ $19 {[%mdl 64] Skewer, Double Attack}) 20... Kh8) 19. f3 $2 {[%emt 0:00:34]} (19. Kxg2 $2 Bh3+ 20. Kxh3 Bxe5 $19) (19. Bxd6 cxd6 20. Re3 Nf4 $17) ({Better is} 19. Re3 $1 $15) 19... Bxe5 $19 {[%emt 0:00:00][%mdl 64] Remove Defender} 20. Rxe5 {[%emt 0:00:05] [#]} Nf4 $1 {[%emt 0:00:00]} 21. h4 {[%emt 0:01:15] [#]} (21. fxg4 $2 Qxg4 22. Kf2 Rae8 $19) 21... Nh3+ {[%emt 0:00:16]} (21... Qxh4 22. Qxf4 Qh1+ 23. Kf2 Qxa1 24. Kxg2 $17) ({Black should play} 21... Qh6 $1 $19 22. Bc4 (22. fxg4 $2 fxg4 23. h5 Qf6 $19) 22... Rae8 23. Bxa6 (23. fxg4 $2 fxg4 24. Rxe8 Rxe8 $19) 23... Nh3+ 24. Kxg2 Rxe5 {[%mdl 64] Deflection} 25. Qxe5 Qxd2+ 26. Be2 Nf4+ 27. Kf2 Ng6) 22. Kxg2 $16 {[%emt 0:00:17][%cal Bg1g2,Bg2f1,Bf1e2,Be2d3,Bd3c4][%mdl 32]} (22. Kh2 $2 Qxh4 23. Kxg2 Nf4+ 24. Qxf4 Bh3+ 25. Kh1 Qxf4 $19) 22... Qxh4 {[%emt 0:00:29]} (22... Nf4+ $16 23. Kg1 Nh3+ 24. Kg2 Nf4+ 25. Kg1 Nh3+ 26. Kg2) 23. fxg4 $18 {[%emt 0:00:28][%cal Od2f3] Strongly threatening Nf3!} fxg4 {[%emt 0:00:02]} (23... f4 {was worth a try.} 24. Kf3 (24. Qxb4 $2 Qg3+ 25. Kh1 Nf2#) (24. Kf1 f3 $17) 24... Qg3+ 25. Ke2 f3+ 26. Kd3 Nf2+ 27. Kc4 Rf4) 24. Rf1 $1 {[%emt 0:00:08]} (24. Qxb4 $2 Rf2+ 25. Kh1 Ng5+ 26. Kg1 Qh2#) 24... Rxf1 {[%emt 0:00:06]} 25. Kxf1 {[%emt 0:00:07]} ({Stronger than} 25. Nxf1 Rf8 26. Ng3 Ng5 $11) 25... Rf8+ {[%emt 0:00:04]} 26. Ke2 {[%emt 0:00:03]} Qg3 $2 {[%emt 0:00:19]} (26... a5 27. Bc4 Qh6) 27. Qe3 {[%emt 0:00:09] White is clearly winning.} Qg2+ {[%emt 0:00:18]} 28. Kd3 {[%emt 0:00:06] Threatens to win with Re8.} Nf2+ {[%emt 0:00:02]} 29. Kc4 {[%emt 0:00:02] Re8 would kill now.} Nd1 {[%emt 0:00:05]} 30. Qd4 {[%emt 0:00:07]} Qg3 {[%emt 0:00:24]} 31. Ne4 {[%emt 0:00:08]} Qe1 {[%emt 0:00:06]} 32. Re7 $2 {[%emt 0:00:11][%mdl 32768] An exciting game.   Weighted Error Value: White=0.48/Black=0.67. Loss on time!?} (32. Kc5 $18) 0-1

[Event "Rapid Shavuot-A 2023"]
[Site "Ramat Gan"]
[Date "2023.05.25"]
[Round "2.3"]
[White "Vaisman, Felix"]
[Black "Zanan, Evgeny"]
[Result "0-1"]
[ECO "C00"]
[WhiteElo "2121"]
[BlackElo "2485"]
[Annotator "TA"]
[PlyCount "36"]
[EventDate "2023.05.19"]
[EventType "swiss"]
[EventCountry "ISR"]
[SourceTitle "playchess.com"]
[Source "ChessBase"]
[SourceQuality "1"]
[TimeControl "900+5"]

{[%evp 10,36,-14,-13,-7,-25,-15,-28,0,-42,-33,-133,-110,-106,-20,-151,-94,-120,-88,-778,-783,-1227,-1212,-1193,-1189,-1096,-1089,-29994,-29995]} 1. e4 {[%emt 0:00:03]} e6 {[%emt 0:00:02]} 2. b3 {[%emt 0:00:05]} d5 {[%emt 0:00:06]} 3. Bb2 {[%emt 0:00:01]} dxe4 {[%emt 0:00:52]} 4. Nc3 {[%emt 0:00:02]} Nf6 {[%emt 0:00:01]} 5. g4 {[%emt 0:00:01]} h6 {[%emt 0:01:15]} 6. Bg2 {[%emt 0:00:03]} e5 {[%emt 0:00:31] C00: French: Unusual White 2nd moves.} 7. h3 {[%emt 0:00:03]} Nc6 {[%emt 0:00:08]} 8. Nxe4 {[%emt 0:00:04] [#]} Be6 $146 {[%emt 0:00:22] Black has an edge.} (8... Bd7 $5 {[%cal Rh6h5]}) ({Predecessor:} 8... Nd5 9. Ne2 Be7 10. O-O h5 11. N2g3 hxg4 12. hxg4 Nf4 13. Qf3 Rh4 14. Nf5 Bxf5 15. gxf5 {0-1 Gahan,M (2231)-Poghosyan,S (2275) Titled Tuesday intern op1 4th Febr blitz 2020 (4)}) 9. Qe2 {[%emt 0:01:15]} Nd5 {[%emt 0:00:43]} 10. Qb5 {[%emt 0:02:59]} (10. Nc3 $15) 10... a6 {[%emt 0:00:30]} 11. Qf1 {[%emt 0:02:06]} (11. Qxb7 $2 {too greedy.} Na5 $19) 11... Nf4 {[%emt 0:00:59]} (11... Ndb4 $17 12. O-O-O Nd4 13. Bxd4 exd4) 12. Bf3 {[%emt 0:00:59]} (12. Ne2 $11 {remains equal.}) 12... Nb4 {[%emt 0:00:58]} ({Black should play} 12... Nd4 13. O-O-O c5) 13. O-O-O {[%emt 0:00:45]} c5 {[%emt 0:03:19][%cal Bc7c5,Bc5c4][%mdl 32] Hoping for ...c4. Black is much more active.} ({Reject} 13... Nxa2+ $6 14. Kb1 Nb4 15. d4 $11) 14. Ng3 $2 {[%emt 0:01:33][%mdl 8192] White does not recover from this.} (14. d3 $17) 14... c4 $19 {[%emt 0:01:09]} 15. a3 {[%emt 0:02:57] [#]} Nbd3+ $1 {[%emt 0:00:26][%mdl 512]} 16. cxd3 {[%emt 0:00:15]} Nxd3+ {[%emt 0:00:01]} 17. Kb1 {[%emt 0:00:17]} Nxb2 {[%emt 0:00:01]} 18. Kxb2 {[%emt 0:00:06]} Qd4+ {[%emt 0:00:02] Weighted Error Value: White=1.50/Black=0.27 (precise)} 0-1

[Event "Rapid Shavuot-A 2023"]
[Site "Ramat Gan"]
[Date "2023.05.25"]
[Round "2.4"]
[White "Bronstein, Or"]
[Black "Ehrlich, Roy"]
[Result "1-0"]
[ECO "E11"]
[WhiteElo "2463"]
[BlackElo "2228"]
[Annotator "TA"]
[PlyCount "59"]
[EventDate "2023.05.19"]
[EventType "swiss"]
[EventCountry "ISR"]
[SourceTitle "playchess.com"]
[Source "ChessBase"]
[SourceQuality "1"]
[TimeControl "900+5"]

{[%evp 12,59,28,25,31,36,37,35,32,33,39,18,20,19,27,12,50,54,108,5,100,83,77,75,185,206,190,184,205,131,287,287,404,287,293,297,749,731,736,490,1286,1244,1137,742,12835,12835,12831,12828,5561,4985]} 1. d4 {[%emt 0:00:01]} e6 {[%emt 0:00:01]} 2. c4 {[%emt 0:00:30]} Bb4+ {[%emt 0:00:02]} 3. Bd2 {[%emt 0:00:17]} c5 {[%emt 0:00:01][%cal Bc7c5,Bc5b4][%mdl 32]} 4. Bxb4 {[%emt 0:00:27]} cxb4 {[%emt 0:00:01]} 5. Nf3 {[%emt 0:00:24]} Nf6 {[%emt 0:00:02]} 6. e3 {[%emt 0:13:56]} O-O {[%emt 0:00:04]} 7. Be2 {[%emt 0:00:05]} d6 {[%emt 0:00:04] E11: Bogo-Indian.} 8. a3 {[%emt 0:00:00]} bxa3 {[%emt 0:00:14]} 9. Rxa3 {[%emt 0:00:00]} a5 {[%emt 0:00:10] White is slightly better.} 10. b4 {[%emt 0:00:00]} Nc6 {[%emt 0:00:21] [#]} 11. b5 $146 {[%emt 0:00:00]} ({Predecessor:} 11. bxa5 Nxa5 12. O-O b6 13. Nbd2 Ba6 14. Qb1 Rc8 15. Rc1 Rc6 16. Nb3 Nxb3 17. Qxb3 {1-0 Boensch,U (2540)-Berg,E (2535) Bundesliga 0203 2002 (1.4)}) 11... Nb4 {[%emt 0:00:02]} 12. O-O {[%emt 0:00:00]} b6 {[%emt 0:00:02]} 13. Nc3 {[%emt 0:00:00]} Qe7 {[%emt 0:01:43]} 14. Na4 {[%emt 0:00:00]} Rb8 {[%emt 0:00:05]} (14... Nd7 $14) 15. Ne1 {[%emt 0:00:00]} (15. Nxb6 $16 Rxb6 16. Qa4) 15... d5 {[%emt 0:01:30]} (15... Bd7 $11 {keeps the balance.}) 16. c5 {[%emt 0:00:00]} bxc5 {[%emt 0:00:14]} 17. Nxc5 {[%emt 0:00:00]} ({Don't play} 17. dxc5 Bd7 $15) 17... Nd7 {[%emt 0:05:24]} (17... Ne4 $16) 18. Nxd7 $18 {[%emt 0:00:00]} ({Resist} 18. Rxa5 $6 Nxc5 19. dxc5 Qxc5 $16) 18... Bxd7 {[%emt 0:00:30]} 19. Rxa5 {[%emt 0:00:00]} Rfc8 {[%emt 0:00:45]} 20. Nf3 {[%emt 0:00:00]} Nc2 $2 {[%emt 0:00:39] A mistake that costs the game.} (20... Rc2 $16 {was necessary.}) 21. Ra7 {[%emt 0:00:00] And now Ne5 would win.} Qd6 {[%emt 0:00:43]} (21... Qd8 {is a better defense.} 22. Ne5 Be8) 22. Ne5 {[%emt 0:00:00]} Be8 {[%emt 0:00:01] [#]} 23. Bd3 $1 {[%emt 0:00:00] aiming for Bxh7+.} f6 $2 {[%emt 0:01:38]} (23... Qb6) 24. Nc6 {[%emt 0:00:00] White is clearly winning.} Bxc6 {[%emt 0:00:17]} 25. bxc6 {[%emt 0:00:00] White wants to mate with Qh5.} ({Less strong is} 25. Qxc2 Bxb5 26. Bxh7+ Kf8 $16) 25... Qxc6 {[%emt 0:00:56] [#]} (25... g6 $142 26. Bxc2 Qxc6 27. Bxg6 hxg6) 26. Bxh7+ $1 {[%emt 0:00:00][%mdl 576] Decoy} Kf8 {[%emt 0:00:03]} 27. Bxc2 {[%emt 0:00:00]} Qxc2 {[%emt 0:00:02]} 28. Qh5 {[%emt 0:00:00][%cal Rh5h8]} Rc7 {[%emt 0:00:49]} 29. Qh8+ {[%emt 0:00:00][%mdl 64] Skewer} Kf7 {[%emt 0:00:01]} 30. Qxb8 {[%emt 0:00:00] Weighted Error Value: White=0.49/Black=0.47} 1-0